fUST/lending_fUST_20250427
["ID","MTS","AMOUNT","RATE_DAILY","PERIOD"]
[359123990,1745719843108,-408.56,0.0001726,2]
[359123991,1745719843119,-400.0,0.0001726,2]
[359123992,1745719843131,-400.0,0.0001726,2]
[359123993,1745719843141,-400.0,0.0001726,2]
[359123994,1745719843151,-463.2,0.0001726,2]
[359123995,1745719843161,-400.0,0.0001726,2]
[359123996,1745719843171,-400.0,0.0001726,2]
[359123997,1745719843180,-400.0,0.0001726,2]
[359123998,1745719843189,-400.0,0.0001726,2]
[359123999,1745719843200,-400.0,0.0001726,2]
[359124000,1745719843209,-400.0,0.0001726,2]
[359124002,1745719843219,-400.0,0.0001726,2]
[359124004,1745719843230,-400.0,0.0001726,2]
[359124006,1745719843239,-400.0,0.0001726,2]
[359124008,1745719843249,-400.0,0.0001726,2]
[359124010,1745719843259,-400.0,0.0001726,2]
[359124012,1745719843269,-400.0,0.0001726,2]
[359124013,1745719843279,-400.0,0.0001726,2]
[359124014,1745719843289,-400.0,0.0001726,2]
[359124015,1745719843299,-400.0,0.0001726,2]
[359124016,1745719843308,-400.0,0.0001726,2]
[359124017,1745719843318,-400.0,0.0001726,2]
[359124018,1745719843328,-400.0,0.0001726,2]
[359124019,1745719843338,-400.0,0.0001726,2]
[359124020,1745719843347,-400.0,0.0001726,2]
[359124021,1745719843357,-403.99,0.0001726,2]
[359124022,1745719843368,-417.17,0.0001726,2]
[359124023,1745719843378,-674.92,0.0001726,2]
[359124024,1745719843388,-400.0,0.0001726,2]
[359124025,1745719843398,-400.0,0.0001726,2]
[359124026,1745719843408,-977.2,0.0001726,2]
[359124027,1745719843418,-400.0,0.0001726,2]
[359124028,1745719843428,-400.0,0.0001726,2]
[359124029,1745719843437,-307.12896223,0.0001726,2]
[359124030,1745719843447,-400.0,0.0001726,2]
[359124031,1745719843457,-540.8895217,0.0001726,2]
[359124033,1745719843467,-400.0,0.0001726,2]
[359124035,1745719843476,-400.0,0.0001726,2]
[359124036,1745719843486,-400.0,0.0001726,2]
[359124037,1745719843495,-400.0,0.0001726,2]
[359124038,1745719843505,-400.0,0.0001726,2]
[359124039,1745719843515,-400.0,0.0001726,2]
[359124040,1745719843525,-1478.94,0.0001726,2]
[359124041,1745719843535,-267.38194704,0.0001726,2]
[359124042,1745719843544,-419.51,0.0001726,2]
[359124044,1745719843554,-885.16,0.0001726,2]
[359124045,1745719843566,-1255.34,0.0001726,2]
[359124046,1745719843576,-2500.0,0.0001726,2]
[359124047,1745719843586,-500.0,0.00017288,2]
[359124048,1745719843596,-500.0,0.00017294,2]
[359124049,1745719843607,-500.0,0.00017295,2]
[359124050,1745719843617,-500.0,0.00017308,2]
[359124051,1745719843627,-500.0,0.00017308,2]
[359124052,1745719843638,-502.46153622,0.00017308,2]
[359124053,1745719843780,-500.0,0.00017308,2]
[359124054,1745719843791,-505.79077755,0.00017314,2]
[359124055,1745719843801,-500.0,0.00017314,2]
[359124056,1745719843811,-500.0,0.00017338,2]
[359124057,1745719843821,-364.18563632,0.00017338,2]
[359124058,1745719843831,-500.0,0.00017338,2]
[359124059,1745719843841,-500.0,0.00017338,2]
[359124060,1745719843851,-400.0,0.00017534,2]
[359124062,1745719843861,-400.0,0.00017534,2]
[359124064,1745719843871,-454.85101672,0.00017534,2]
[359124066,1745719843881,-400.0,0.00017534,2]
[359124068,1745719843892,-400.0,0.00017534,2]
[359124070,1745719843902,-400.0,0.00017534,2]
[359124071,1745719843912,-400.0,0.00017534,2]
[359124072,1745719843922,-400.0,0.00017534,2]
[359124073,1745719843932,-400.0,0.00017534,2]
[359124074,1745719843943,-400.0,0.00017534,2]
[359124075,1745719843952,-400.0,0.00017534,2]
[359124076,1745719843962,-400.0,0.00017534,2]
[359124077,1745719843972,-230.75778243,0.00017534,2]
[359124078,1745719843982,-400.0,0.00017534,2]
[359124079,1745719843991,-468.5827323,0.00017534,2]
[359124080,1745719844002,-400.0,0.00017534,2]
[359124081,1745719844011,-407.33,0.00017534,2]
[359124082,1745719844022,-400.0,0.00017534,2]
[359124083,1745719844031,-400.0,0.00017534,2]
[359124084,1745719844041,-400.0,0.00017534,2]
[359124085,1745719844051,-400.0,0.00017534,2]
[359124086,1745719844061,-235.29880527,0.00017534,2]
[359124087,1745719844070,-400.0,0.00017534,2]
[359124088,1745719844080,-400.0,0.00017534,2]
[359124089,1745719844089,-400.0,0.00017534,2]
[359124090,1745719844099,-400.0,0.00017534,2]
[359124091,1745719844109,-400.0,0.00017534,2]
[359124092,1745719844118,-400.0,0.00017534,2]
[359124093,1745719844128,-400.0,0.00017534,2]
[359124094,1745719844140,-400.0,0.00017534,2]
[359124095,1745719844149,-400.0,0.00017534,2]
[359124096,1745719844159,-400.0,0.00017534,2]
[359124097,1745719844169,-400.0,0.00017534,2]
[359124098,1745719844179,-400.0,0.00017534,2]
[359124099,1745719844190,-400.0,0.00017534,2]
[359124100,1745719844201,-400.0,0.00017534,2]
[359124101,1745719844211,-408.56,0.00017534,2]
[359124102,1745719844222,-400.0,0.00017534,2]
[359124103,1745719844232,-400.0,0.00017534,2]
[359124104,1745719844241,-400.0,0.00017534,2]
[359124105,1745719844251,-463.2,0.00017534,2]
[359124106,1745719844260,-400.0,0.00017534,2]
[359124107,1745719844270,-400.0,0.00017534,2]
[359124108,1745719844280,-400.0,0.00017534,2]
[359124109,1745719844289,-412.17563273,0.00017534,2]
[359124110,1745719844299,-400.0,0.00017534,2]
[359124111,1745719844309,-400.0,0.00017534,2]
[359124112,1745719844318,-400.0,0.00017534,2]
[359124113,1745719844328,-400.0,0.00017534,2]
[359124114,1745719844337,-478.84341369,0.00017534,2]
[359124115,1745719844347,-400.0,0.00017534,2]
[359124116,1745719844357,-400.0,0.00017534,2]
[359124117,1745719844367,-400.0,0.00017534,2]
[359124118,1745719844377,-400.0,0.00017534,2]
[359124119,1745719844387,-400.0,0.00017534,2]
[359124120,1745719844398,-400.0,0.00017534,2]
[359124121,1745719844407,-400.0,0.00017534,2]
[359124122,1745719844417,-400.0,0.00017534,2]
[359124123,1745719844427,-400.0,0.00017534,2]
[359124124,1745719844436,-400.0,0.00017534,2]
[359124125,1745719844446,-400.0,0.00017534,2]
[359124126,1745719844456,-403.99,0.00017534,2]
[359124127,1745719844465,-417.17,0.00017534,2]
[359124128,1745719844475,-674.92,0.00017534,2]
[359124129,1745719844484,-400.0,0.00017534,2]
[359124130,1745719844494,-400.0,0.00017534,2]
[359124131,1745719844503,-977.2,0.00017534,2]
[359124132,1745719844513,-400.0,0.00017534,2]
[359124133,1745719844522,-400.0,0.00017534,2]
[359124134,1745719844531,-400.0,0.00017534,2]
[359124135,1745719844541,-400.0,0.00017534,2]
[359124136,1745719844551,-400.0,0.00017534,2]
[359124137,1745719844561,-400.0,0.00017534,2]
[359124138,1745719844573,-400.0,0.00017534,2]
[359124139,1745719844583,-400.0,0.00017534,2]
[359124140,1745719844592,-400.0,0.00017534,2]
[359124141,1745719844602,-1478.94,0.00017534,2]
[359124142,1745719844612,-419.51,0.00017534,2]
[359124143,1745719844621,-885.16,0.00017534,2]
[359124144,1745719844631,-1255.34,0.00017534,2]
[359124145,1745719844643,-3000.0,0.00017534,2]
[359124146,1745719844653,-316.30921931,0.00017555,2]
[359124147,1745719844663,-472.48316373,0.00017808,2]
[359124148,1745719844674,-400.0,0.00017808,2]
[359124149,1745719844684,-530.88,0.00017808,2]
[359124150,1745719844694,-400.0,0.00017808,2]
[359124151,1745719844705,-400.0,0.00017808,2]
[359124152,1745719844716,-400.0,0.00017808,2]
[359124153,1745719844726,-400.0,0.00017808,2]
[359124154,1745719844736,-400.0,0.00017808,2]
[359124155,1745719844746,-400.0,0.00017808,2]
[359124156,1745719844756,-189.74,0.00017808,2]
[359124157,1745719844765,-400.0,0.00017808,2]
[359124158,1745719844775,-400.0,0.00017808,2]
[359124159,1745719844786,-400.0,0.00017808,2]
[359124160,1745719844796,-407.33,0.00017808,2]
[359124161,1745719844807,-400.0,0.00017808,2]
[359124162,1745719844819,-400.0,0.00017808,2]
[359124163,1745719844829,-400.0,0.00017808,2]
[359124164,1745719844841,-400.0,0.00017808,2]
[359124165,1745719844852,-400.0,0.00017808,2]
[359124166,1745719844863,-264.23569963,0.00017808,2]
[359124167,1745719844873,-400.0,0.00017808,2]
[359124168,1745719844883,-400.0,0.00017808,2]
[359124169,1745719844895,-400.0,0.00017808,2]
[359124170,1745719844905,-400.0,0.00017808,2]
[359124171,1745719844916,-378.29464336,0.00017808,2]
[359124172,1745719844925,-500.0,0.00017808,2]
[359124173,1745719844935,-368.20593849,0.00017808,2]
[359124174,1745719844945,-400.0,0.00017808,2]
[359124175,1745719844955,-400.0,0.00017808,2]
[359124176,1745719844964,-400.0,0.00017808,2]
[359124177,1745719844974,-400.0,0.00017808,2]
[359124178,1745719844983,-408.56,0.00017808,2]
[359124179,1745719844992,-400.0,0.00017808,2]
[359124180,1745719845002,-400.0,0.00017808,2]
[359124181,1745719845012,-400.0,0.00017808,2]
[359124182,1745719845022,-463.2,0.00017808,2]
[359124183,1745719845032,-400.0,0.00017808,2]
[359124184,1745719845041,-400.0,0.00017808,2]
[359124185,1745719845051,-400.0,0.00017808,2]
[359124186,1745719845060,-400.0,0.00017808,2]
[359124187,1745719845070,-400.0,0.00017808,2]
[359124188,1745719845080,-400.0,0.00017808,2]
[359124189,1745719845090,-400.0,0.00017808,2]
[359124190,1745719845099,-400.0,0.00017808,2]
[359124191,1745719845109,-400.0,0.00017808,2]
[359124192,1745719845119,-400.0,0.00017808,2]
[359124193,1745719845129,-400.0,0.00017808,2]
[359124194,1745719845139,-400.0,0.00017808,2]
[359124195,1745719845148,-400.0,0.00017808,2]
[359124196,1745719845157,-400.0,0.00017808,2]
[359124197,1745719845167,-400.0,0.00017808,2]
[359124198,1745719845176,-400.0,0.00017808,2]
[359124199,1745719845185,-400.0,0.00017808,2]
[359124200,1745719845195,-400.0,0.00017808,2]
[359124201,1745719845206,-403.99,0.00017808,2]
[359124202,1745719845217,-417.17,0.00017808,2]
[359124203,1745719845227,-674.92,0.00017808,2]
[359124204,1745719845237,-351.06029014,0.00017808,2]
[359124205,1745719845246,-400.0,0.00017808,2]
[359124206,1745719845255,-977.2,0.00017808,2]
[359124207,1745719845265,-400.0,0.00017808,2]
[359124208,1745719845274,-400.0,0.00017808,2]
[359124209,1745719845284,-400.0,0.00017808,2]
[359124210,1745719845296,-400.0,0.00017808,2]
[359124211,1745719845309,-400.0,0.00017808,2]
[359124212,1745719845323,-400.0,0.00017808,2]
[359124213,1745719845338,-400.0,0.00017808,2]
[359124214,1745719845352,-400.0,0.00017808,2]
[359124215,1745719845365,-400.0,0.00017808,2]
[359124216,1745719845376,-1478.94,0.00017808,2]
[359124217,1745719845389,-419.51,0.00017808,2]
[359124218,1745719845402,-885.16,0.00017808,2]
[359124219,1745719845415,-1255.34,0.00017808,2]
[359124220,1745719845427,-594.82626747,0.00017808,2]
[359124221,1745719845439,-602.42,0.00018072,3]
[359124222,1745719845452,-301.2,0.00018072,3]
[359124223,1745719845465,-400.0,0.00018082,2]
[359124224,1745719845478,-189.73,0.00018082,2]
[359124225,1745719845491,-400.0,0.00018082,2]
[359124226,1745719845504,-400.0,0.00018082,2]
[359124227,1745719845517,-400.0,0.00018082,2]
[359124228,1745719845531,-400.0,0.00018082,2]
[359124229,1745719845543,-400.0,0.00018082,2]
[359124230,1745719845554,-400.0,0.00018082,2]
[359124231,1745719845569,-400.0,0.00018082,2]
[359124232,1745719845581,-400.0,0.00018082,2]
[359124233,1745719845593,-407.33,0.00018082,2]
[359124234,1745719845604,-400.0,0.00018082,2]
[359124235,1745719845617,-400.0,0.00018082,2]
[359124236,1745719845630,-400.0,0.00018082,2]
[359124237,1745719845644,-400.0,0.00018082,2]
[359124238,1745719845657,-400.0,0.00018082,2]
[359124239,1745719845670,-400.0,0.00018082,2]
[359124240,1745719845682,-400.0,0.00018082,2]
[359124241,1745719845693,-400.0,0.00018082,2]
[359124242,1745719845704,-400.0,0.00018082,2]
[359124243,1745719845715,-400.0,0.00018082,2]
[359124244,1745719845727,-400.0,0.00018082,2]
[359124245,1745719845740,-400.0,0.00018082,2]
[359124246,1745719845752,-405.03724251,0.00018082,2]
[359124247,1745719845764,-408.56,0.00018082,2]
[359124248,1745719845777,-400.0,0.00018082,2]
[359124249,1745719845789,-400.0,0.00018082,2]
[359124250,1745719845802,-400.0,0.00018082,2]
[359124251,1745719845815,-463.2,0.00018082,2]
[359124252,1745719845828,-408.86134913,0.00018082,2]
[359124253,1745719845841,-400.0,0.00018082,2]
[359124254,1745719845854,-400.0,0.00018082,2]
[359124255,1745719845868,-400.0,0.00018082,2]
[359124256,1745719845881,-400.0,0.00018082,2]
[359124257,1745719845893,-400.0,0.00018082,2]
[359124258,1745719845903,-400.0,0.00018082,2]
[359124259,1745719845915,-400.0,0.00018082,2]
[359124260,1745719845925,-365.45922116,0.00018082,2]
[359124261,1745719846077,-34.54077884,0.00018082,2]
[359124262,1745719846088,-400.0,0.00018082,2]
[359124263,1745719846101,-284.65,0.00018082,2]
[359124264,1745719846113,-400.0,0.00018082,2]
[359124265,1745719846124,-400.0,0.00018082,2]
[359124266,1745719846136,-400.0,0.00018082,2]
[359124267,1745719846147,-400.0,0.00018082,2]
[359124268,1745719846158,-400.0,0.00018082,2]
[359124269,1745719846169,-400.0,0.00018082,2]
[359124270,1745719846181,-400.0,0.00018082,2]
[359124271,1745719846192,-403.99,0.00018082,2]
[359124273,1745719846205,-417.17,0.00018082,2]
[359124275,1745719846217,-674.92,0.00018082,2]
[359124277,1745719846229,-400.0,0.00018082,2]
[359124280,1745719846240,-977.2,0.00018082,2]
[359124282,1745719846252,-328.96815303,0.00018082,2]
[359124284,1745719846266,-71.03184697,0.00018082,2]
[359124286,1745719846277,-400.0,0.00018082,2]
[359124288,1745719846288,-400.0,0.00018082,2]
[359124290,1745719846299,-148.96815303,0.00018082,2]
[359124293,1745719846314,-251.03184697,0.00018082,2]
[359124295,1745719846326,-400.0,0.00018082,2]
[359124297,1745719846337,-400.0,0.00018082,2]
[359124300,1745719846349,-400.0,0.00018082,2]
[359124302,1745719846360,-400.0,0.00018082,2]
[359124304,1745719846371,-400.0,0.00018082,2]
[359124306,1745719846382,-1478.94,0.00018082,2]
[359124308,1745719846394,-419.51,0.00018082,2]
[359124310,1745719846406,-112.18990859,0.00018082,2]
[359124334,1745719846627,-772.97009141,0.00018082,2]
[359124336,1745719846640,-1255.34,0.00018082,2]
[359124338,1745719846653,-531.14,0.00018356,2]
[359124340,1745719846662,-219.85296717,0.00018356,2]
[359124342,1745719846671,-533.50358441,0.00018356,2]
[359124344,1745719846681,-400.0,0.00018356,2]
[359124346,1745719846691,-389.04,0.00018356,2]
[359124348,1745719846701,-400.0,0.00018356,2]
[359124350,1745719846711,-400.0,0.00018356,2]
[359124352,1745719846720,-400.0,0.00018356,2]
[359124354,1745719846730,-295.56,0.00018356,2]
[359124356,1745719846740,-407.33,0.00018356,2]
[359124358,1745719846750,-400.0,0.00018356,2]
[359124360,1745719846760,-400.0,0.00018356,2]
[359124362,1745719846770,-475.76,0.00018356,2]
[359124364,1745719846779,-400.0,0.00018356,2]
[359124366,1745719846788,-454.94728435,0.00018356,2]
[359124368,1745719846798,-400.0,0.00018356,2]
[359124370,1745719846811,-400.0,0.00018356,2]
[359124372,1745719846821,-400.0,0.00018356,2]
[359124374,1745719846830,-400.0,0.00018356,2]
[359124376,1745719846840,-400.0,0.00018356,2]
[359124378,1745719846849,-400.0,0.00018356,2]
[359124380,1745719846859,-400.0,0.00018356,2]
[359124382,1745719846868,-408.56,0.00018356,2]
[359124384,1745719846878,-264.62177903,0.00018356,2]
[359124386,1745719846888,-400.0,0.00018356,2]
[359124388,1745719846897,-400.0,0.00018356,2]
[359124390,1745719846907,-463.2,0.00018356,2]
[359124392,1745719846916,-400.0,0.00018356,2]
[359124394,1745719846926,-400.0,0.00018356,2]
[359124396,1745719846936,-400.0,0.00018356,2]
[359124412,1745719847165,-400.0,0.00018356,2]
[359124413,1745719847182,-400.0,0.00018356,2]
[359124414,1745719847192,-400.0,0.00018356,2]
[359124415,1745719847203,-400.0,0.00018356,2]
[359124416,1745719847213,-400.0,0.00018356,2]
[359124417,1745719847223,-400.0,0.00018356,2]
[359124418,1745719847232,-400.0,0.00018356,2]
[359124419,1745719847242,-400.0,0.00018356,2]
[359124420,1745719847253,-400.0,0.00018356,2]
[359124421,1745719847263,-400.0,0.00018356,2]
[359124422,1745719847273,-400.0,0.00018356,2]
[359124423,1745719847285,-400.0,0.00018356,2]
[359124424,1745719847295,-400.0,0.00018356,2]
[359124425,1745719847305,-403.99,0.00018356,2]
[359124426,1745719847315,-417.17,0.00018356,2]
[359124427,1745719847326,-674.92,0.00018356,2]
[359124428,1745719847336,-400.0,0.00018356,2]
[359124429,1745719847348,-977.2,0.00018356,2]
[359124430,1745719847358,-400.0,0.00018356,2]
[359124431,1745719847369,-400.0,0.00018356,2]
[359124432,1745719847379,-400.0,0.00018356,2]
[359124433,1745719847390,-400.0,0.00018356,2]
[359124434,1745719847400,-400.0,0.00018356,2]
[359124435,1745719847409,-400.0,0.00018356,2]
[359124437,1745719847419,-400.0,0.00018356,2]
[359124439,1745719847429,-400.0,0.00018356,2]
[359124441,1745719847439,-400.0,0.00018356,2]
[359124443,1745719847449,-1478.94,0.00018356,2]
[359124444,1745719847458,-419.51,0.00018356,2]
[359124445,1745719847468,-885.16,0.00018356,2]
[359124447,1745719847478,-1255.34,0.00018356,2]
[359124449,1745719847488,-316.30921931,0.00018383,2]
[359124451,1745719847498,-400.0,0.0001863,2]
[359124452,1745719847507,-400.0,0.0001863,2]
[359124454,1745719847519,-400.0,0.0001863,2]
[359124456,1745719847529,-400.0,0.0001863,2]
[359124457,1745719847539,-407.33,0.0001863,2]
[359124459,1745719847549,-319.64586808,0.0001863,2]
[359124461,1745719847559,-400.0,0.0001863,2]
[359124462,1745719847570,-400.0,0.0001863,2]
[359124463,1745719847580,-344.18012893,0.0001863,2]
[359124465,1745719847590,-427.91444274,0.0001863,2]
[359124467,1745719847599,-400.0,0.0001863,2]
[359124469,1745719847610,-400.0,0.0001863,2]
[359124470,1745719847619,-400.0,0.0001863,2]
[359124471,1745719847629,-400.0,0.0001863,2]
[359124472,1745719847640,-540.08190243,0.0001863,2]
[359124473,1745719847650,-408.56,0.0001863,2]
[359124474,1745719847659,-400.0,0.0001863,2]
[359124475,1745719847668,-183.23573891,0.0001863,2]
[359124476,1745719847678,-463.2,0.0001863,2]
[359124477,1745719847688,-400.0,0.0001863,2]
[359124478,1745719847697,-400.0,0.0001863,2]
[359124479,1745719847707,-400.0,0.0001863,2]
[359124480,1745719847717,-400.0,0.0001863,2]
[359124481,1745719847726,-400.0,0.0001863,2]
[359124482,1745719847736,-400.0,0.0001863,2]
[359124483,1745719847745,-400.0,0.0001863,2]
[359124484,1745719847755,-400.0,0.0001863,2]
[359124485,1745719847764,-400.0,0.0001863,2]
[359124486,1745719847774,-400.0,0.0001863,2]
[359124487,1745719847785,-400.0,0.0001863,2]
[359124488,1745719847795,-400.0,0.0001863,2]
[359124489,1745719847805,-400.0,0.0001863,2]
[359124490,1745719847814,-400.0,0.0001863,2]
[359124491,1745719847824,-400.0,0.0001863,2]
[359124492,1745719847834,-400.0,0.0001863,2]
[359124493,1745719847844,-403.99,0.0001863,2]
[359124494,1745719847854,-417.17,0.0001863,2]
[359124495,1745719847864,-674.92,0.0001863,2]
[359124496,1745719847874,-400.0,0.0001863,2]
[359124497,1745719847884,-977.2,0.0001863,2]
[359124498,1745719847896,-400.0,0.0001863,2]
[359124499,1745719847906,-159.95723669,0.0001863,2]
[359124500,1745719847917,-400.0,0.0001863,2]
[359124501,1745719847927,-151.0,0.0001863,2]
[359124502,1745719847939,-400.0,0.0001863,2]
[359124503,1745719847949,-273.77927549,0.0001863,2]
[359124504,1745719847958,-360.0,0.0001863,2]
[359124505,1745719847967,-400.0,0.0001863,2]
[359124506,1745719847977,-400.0,0.0001863,2]
[359124507,1745719847986,-278.4555549,0.0001863,2]
[359124508,1745719847996,-1478.94,0.0001863,2]
[359124509,1745719848005,-419.51,0.0001863,2]
[359124510,1745719848014,-885.16,0.0001863,2]
[359124511,1745719848024,-1255.34,0.0001863,2]
[359124512,1745719848034,-239.73413658,0.00018869,2]
[359124513,1745719848043,-400.0,0.00018904,2]
[359124514,1745719848053,-400.0,0.00018904,2]
[359124515,1745719848063,-400.0,0.00018904,2]
[359124516,1745719848073,-543.81497663,0.00018904,2]
[359124517,1745719848082,-407.33,0.00018904,2]
[359124518,1745719848092,-538.64,0.00018904,2]
[359124519,1745719848101,-478.07,0.00018904,2]
[359124520,1745719848111,-341.77458815,0.00018904,2]
[359124521,1745719848120,-321.87,0.00018904,2]
[359124522,1745719848130,-510.78804603,0.00018904,2]
[359124523,1745719848141,-400.0,0.00018904,2]
[359124524,1745719848150,-408.56,0.00018904,2]
[359124525,1745719848161,-400.0,0.00018904,2]
[359124526,1745719848171,-463.2,0.00018904,2]
[359124527,1745719848181,-462.80716979,0.00018904,2]
[359124528,1745719848191,-400.0,0.00018904,2]
[359124529,1745719848201,-400.0,0.00018904,2]
[359124530,1745719848210,-400.0,0.00018904,2]
[359124531,1745719848220,-517.95542369,0.00018904,2]
[359124532,1745719848230,-400.0,0.00018904,2]
[359124533,1745719848239,-400.0,0.00018904,2]
[359124534,1745719848249,-400.0,0.00018904,2]
[359124535,1745719848258,-400.0,0.00018904,2]
[359124536,1745719848268,-400.0,0.00018904,2]
[359124537,1745719848278,-400.0,0.00018904,2]
[359124538,1745719848288,-400.0,0.00018904,2]
[359124539,1745719848297,-400.0,0.00018904,2]
[359124540,1745719848307,-400.0,0.00018904,2]
[359124541,1745719848317,-400.0,0.00018904,2]
[359124542,1745719848327,-487.34535687,0.00018904,2]
[359124543,1745719848336,-403.99,0.00018904,2]
[359124544,1745719848346,-417.17,0.00018904,2]
[359124545,1745719848355,-674.92,0.00018904,2]
[359124546,1745719848364,-400.0,0.00018904,2]
[359124547,1745719848374,-977.2,0.00018904,2]
[359124548,1745719848383,-400.0,0.00018904,2]
[359124549,1745719848394,-400.0,0.00018904,2]
[359124550,1745719848403,-400.0,0.00018904,2]
[359124551,1745719848413,-400.0,0.00018904,2]
[359124552,1745719848423,-400.0,0.00018904,2]
[359124553,1745719848432,-1478.94,0.00018904,2]
[359124554,1745719848442,-419.51,0.00018904,2]
[359124555,1745719848451,-885.16,0.00018904,2]
[359124556,1745719848461,-1255.34,0.00018904,2]
[359124557,1745719848471,-450.41391131,0.00019178,2]
[359124558,1745719848482,-400.0,0.00019178,2]
[359124559,1745719848492,-310.25275775,0.00019178,2]
[359124560,1745719848502,-407.33,0.00019178,2]
[359124561,1745719848511,-400.0,0.00019178,2]
[359124562,1745719848521,-408.56,0.00019178,2]
[359124563,1745719848531,-218.24697394,0.00019178,2]
[359124564,1745719848540,-463.2,0.00019178,2]
[359124565,1745719848550,-400.0,0.00019178,2]
[359124566,1745719848559,-400.0,0.00019178,2]
[359124567,1745719848571,-400.0,0.00019178,2]
[359124568,1745719848582,-400.0,0.00019178,2]
[359124569,1745719848592,-400.0,0.00019178,2]
[359124570,1745719848601,-400.0,0.00019178,2]
[359124571,1745719848613,-400.0,0.00019178,2]
[359124572,1745719848622,-400.0,0.00019178,2]
[359124573,1745719848632,-400.0,0.00019178,2]
[359124574,1745719848643,-400.0,0.00019178,2]
[359124575,1745719848654,-510.16425741,0.00019178,2]
[359124576,1745719848664,-400.0,0.00019178,2]
[359124577,1745719848674,-400.0,0.00019178,2]
[359124578,1745719848683,-403.99,0.00019178,2]
[359124579,1745719848694,-417.17,0.00019178,2]
[359124580,1745719848704,-674.92,0.00019178,2]
[359124581,1745719848713,-411.53697702,0.00019178,2]
[359124582,1745719848723,-977.2,0.00019178,2]
[359124583,1745719848733,-400.0,0.00019178,2]
[359124584,1745719848743,-400.0,0.00019178,2]
[359124585,1745719848753,-400.0,0.00019178,2]
[359124586,1745719848763,-400.0,0.00019178,2]
[359124587,1745719848773,-400.0,0.00019178,2]
[359124588,1745719848783,-1478.94,0.00019178,2]
[359124589,1745719848792,-419.51,0.00019178,2]
[359124590,1745719848802,-885.16,0.00019178,2]
[359124591,1745719848811,-1255.34,0.00019178,2]
[359124592,1745719848821,-300.0,0.00019178,2]
[359124593,1745719848830,-316.30921931,0.0001921,2]
[359124594,1745719848839,-400.0,0.00019452,2]
[359124595,1745719848850,-407.33,0.00019452,2]
[359124596,1745719848859,-253.58094,0.00019452,2]
[359124597,1745719848869,-400.0,0.00019452,2]
[359124598,1745719848879,-408.56,0.00019452,2]
[359124599,1745719848889,-463.2,0.00019452,2]
[359124600,1745719848899,-400.0,0.00019452,2]
[359124601,1745719848908,-400.0,0.00019452,2]
[359124602,1745719848918,-160.295361,0.00019452,2]
[359124603,1745719848928,-400.0,0.00019452,2]
[359124604,1745719848937,-400.0,0.00019452,2]
[359124605,1745719848947,-400.0,0.00019452,2]
[359124606,1745719848956,-400.0,0.00019452,2]
[359124607,1745719848965,-195.51599647,0.00019452,2]